fUSD/lending_fUSD_20260205
["ID","MTS","AMOUNT","RATE_DAILY","PERIOD"]
[404599952,1770324673001,-150.0,0.00041874,30]
[404599953,1770324673010,-150.0,0.00041883,30]
[404599954,1770324673019,-150.0,0.00041888,30]
[404599955,1770324673029,-393.16577,0.00041888,30]
[404599956,1770324673038,-150.0,0.00041891,30]
[404599957,1770324673048,-153.0,0.000419,120]
[404599958,1770324673058,-214.09192237,0.000419,120]
[404599959,1770324673068,-90571.96242473,0.000419,14]
[404599960,1770324673077,-2000.0,0.000419,2]
[404599961,1770324673094,-893.02,0.00041902,120]
[404599962,1770324673104,-150.0,0.00041905,30]
[404599963,1770324673113,-150.0,0.00041905,30]
[404599964,1770324673122,-2500.0,0.00041917,120]
[404599965,1770324673132,-877.3313271,0.00041917,120]
[404599966,1770324673142,-800.0,0.00041918,120]
[404599967,1770324673151,-576.95091935,0.00041919,2]
[404599968,1770324673160,-964.36669259,0.00041927,2]
[404599969,1770324673170,-150.0,0.00041932,30]
[404599970,1770324673180,-150.0,0.00041954,30]
[404599971,1770324673191,-150.0,0.00041958,30]
[404599972,1770324673200,-150.0,0.00041963,30]
[404599973,1770324673210,-150.0,0.00041965,30]
[404599974,1770324673219,-150.0,0.00041979,30]
[404599975,1770324673229,-706.28079436,0.00041999,120]
[404599976,1770324673238,-50000.0,0.00042,35]
[404599977,1770324673248,-482.0,0.00042,2]
[404599978,1770324673257,-579.87,0.00042,120]
[404599979,1770324673266,-179.77340195,0.00042,30]
[404599980,1770324673276,-609.56,0.00042,120]
[404599981,1770324673285,-159151.74861367,0.00042,120]
[404599982,1770324673294,-381.65506028,0.00042,120]
[404599983,1770324673304,-192.46606596,0.00042,100]
[404599984,1770324673314,-730.46654582,0.00042,120]
[404599985,1770324673323,-178.07402124,0.00042,120]
[404599986,1770324673338,-600.0,0.00042,120]
[404599987,1770324673348,-400.0,0.00042,120]
[404599988,1770324673357,-234.3501992,0.00042,120]
[404599989,1770324673367,-539.5483474,0.00042,120]
[404599990,1770324673376,-729.24,0.00042,120]
[404599991,1770324673386,-105427.7323253,0.00042,30]
[404599992,1770324673395,-298.2983332,0.00042,120]
[404599993,1770324673405,-1223.266,0.00042,30]
[404599994,1770324673414,-500.0,0.00042,120]
[404599995,1770324673424,-500.0,0.00042,120]
[404599996,1770324673434,-231.49267336,0.00042,120]
[404599997,1770324673443,-270.0,0.00042,30]
[404599998,1770324673453,-4073.68,0.00042,30]
[404599999,1770324673462,-543.52,0.00042,14]
[404600000,1770324673472,-156688.5,0.00042,2]
[404600001,1770324673481,-1604.01,0.00042,14]
[404600002,1770324673490,-150.0,0.00042002,30]
[404600003,1770324673500,-150.0,0.00042004,30]
[404600004,1770324673510,-150.0,0.00042004,30]
[404600005,1770324673520,-1362.58578207,0.0004201,2]
[404600006,1770324673529,-157.43101635,0.0004201,30]
[404600007,1770324673538,-164.47,0.00042016,90]
[404600008,1770324673548,-1329.22,0.00042016,90]
[404600009,1770324673557,-311.65591603,0.00042016,120]
[404600010,1770324673567,-150.0,0.0004204,30]
[404600011,1770324673576,-150.0,0.00042043,30]
[404600012,1770324673592,-150.0,0.00042054,30]
[404600013,1770324673602,-5000.0,0.00042057,30]
[404600014,1770324673611,-5000.0,0.00042057,30]
[404600015,1770324673621,-150.0,0.00042071,30]
[404600016,1770324673630,-150.0,0.00042071,30]
[404600017,1770324673640,-150.0,0.00042083,30]
[404600018,1770324673649,-150.0,0.00042087,120]
[404600019,1770324673659,-150.0,0.00042092,30]
[404600020,1770324673669,-582.0,0.000421,3]
[404600021,1770324673678,-150.0,0.00042104,30]
[404600022,1770324673688,-150.0,0.00042104,30]
[404600023,1770324673697,-150.0,0.0004211,120]
[404600024,1770324673707,-150.0,0.00042114,30]
[404600025,1770324673716,-150.0,0.0004212,30]
[404600026,1770324673727,-150.0,0.00042127,30]
[404600027,1770324673737,-150.0,0.00042144,30]
[404600028,1770324673746,-150.0,0.00042144,30]
[404600029,1770324673758,-150.0,0.00042154,30]
[404600030,1770324673768,-150.0,0.00042162,30]
[404600031,1770324673777,-150.0,0.00042189,30]
[404600032,1770324673787,-800.0,0.00042192,120]
[404600033,1770324673797,-5626.65772225,0.000422,2]
[404600034,1770324673806,-150.0,0.00042204,30]
[404600035,1770324673816,-150.0,0.00042204,30]
[404600036,1770324673828,-150.0,0.00042212,30]
[404600037,1770324673843,-150.0,0.00042221,30]
[404600038,1770324673853,-150.0,0.00042235,30]
[404600039,1770324673863,-800.0,0.00042238,60]
[404600040,1770324673872,-150.0,0.00042239,30]
[404600041,1770324673881,-150.0,0.00042254,30]
[404600042,1770324673891,-150.0,0.00042254,30]
[404600043,1770324673900,-150.0,0.00042254,30]
[404600044,1770324673910,-150.0,0.00042263,30]
[404600045,1770324673919,-150.0,0.00042296,30]
[404600046,1770324673928,-150.0,0.00042304,30]
[404600047,1770324673938,-150.0,0.00042304,30]
[404600048,1770324673948,-152.42672156,0.0004231,2]
[404600049,1770324673957,-150.0,0.00042337,30]
[404600050,1770324673967,-150.0,0.00042345,30]
[404600051,1770324673976,-150.0,0.00042351,30]
[404600052,1770324673986,-150.0,0.00042351,120]
[404600053,1770324673996,-150.0,0.00042354,30]
[404600054,1770324674006,-150.0,0.00042358,30]
[404600055,1770324674015,-150.0,0.0004238,30]
[404600056,1770324674024,-150.0,0.00042386,30]
[404600057,1770324674034,-160.0,0.000424,120]
[404600058,1770324674043,-160.0,0.000424,30]
[404600059,1770324674052,-160.0,0.000424,30]
[404600060,1770324674062,-6776.45956324,0.000424,2]
[404600061,1770324674071,-150.0,0.00042403,30]
[404600062,1770324674086,-150.0,0.00042403,30]
[404600063,1770324674095,-150.0,0.00042412,30]
[404600064,1770324674105,-7670.45,0.00042419,30]
[404600065,1770324674114,-150.0,0.00042437,30]
[404600066,1770324674124,-150.0,0.00042437,30]
[404600067,1770324674134,-150.0,0.00042437,30]
[404600068,1770324674144,-150.0,0.00042437,30]
[404600069,1770324674153,-150.0,0.00042437,30]
[404600070,1770324674163,-2769.66593162,0.00042437,120]
[404600071,1770324674173,-500.0,0.00042438,120]
[404600072,1770324674182,-500.0,0.00042438,120]
[404600073,1770324674193,-150.0,0.00042453,30]
[404600074,1770324674202,-150.0,0.00042465,30]
[404600075,1770324674212,-800.0,0.00042466,120]
[404600076,1770324674222,-20000.0,0.00042466,120]
[404600077,1770324674231,-150.0,0.00042476,30]
[404600078,1770324674241,-150.0,0.0004248,30]
[404600079,1770324674250,-150.0,0.00042486,30]
[404600080,1770324674260,-1000.0,0.000425,2]
[404600081,1770324674269,-164.149,0.000425,120]
[404600082,1770324674279,-26037.11708503,0.000425,10]
[404600083,1770324674288,-153.0,0.000425,120]
[404600084,1770324674297,-281.35834676,0.000425,120]
[404600085,1770324674307,-938.07244153,0.000425,120]
[404600086,1770324674316,-676.266999,0.000425,120]
[404600087,1770324674326,-1870.53300981,0.000425,120]
[404600088,1770324674343,-486.73,0.000425,120]
[404600089,1770324674353,-150.0,0.00042503,30]
[404600090,1770324674363,-150.0,0.00042503,30]
[404600091,1770324674373,-12272.72,0.00042504,120]
[404600092,1770324674382,-500.0,0.00042512,60]
[404600093,1770324674393,-150.0,0.00042528,30]
[404600094,1770324674403,-150.0,0.00042538,30]
[404600095,1770324674412,-150.0,0.00042549,30]
[404600096,1770324674422,-150.0,0.00042553,30]
[404600097,1770324674432,-77693.0,0.00042559,30]
[404600098,1770324674442,-150.0,0.00042561,30]
[404600099,1770324674451,-150.0,0.00042568,120]
[404600100,1770324674460,-200.0,0.00042569,2]
[404600101,1770324674470,-200.0,0.00042569,2]
[404600102,1770324674479,-200.0,0.00042569,2]
[404600103,1770324674490,-200.0,0.00042569,2]
[404600104,1770324674499,-200.0,0.00042569,2]
[404600105,1770324674508,-200.0,0.00042569,2]
[404600106,1770324674518,-200.0,0.00042569,2]
[404600107,1770324674528,-200.0,0.00042569,2]
[404600108,1770324674537,-200.0,0.00042569,2]
[404600109,1770324674546,-200.0,0.00042569,2]
[404600110,1770324674555,-200.0,0.00042569,2]
[404600111,1770324674565,-200.0,0.00042569,2]
[404600112,1770324674575,-200.0,0.00042569,2]
[404600113,1770324674589,-200.0,0.00042569,2]
[404600114,1770324674599,-200.0,0.00042569,2]
[404600115,1770324674608,-200.0,0.00042569,2]
[404600116,1770324674617,-200.0,0.00042569,2]
[404600117,1770324674627,-200.0,0.00042569,2]
[404600118,1770324674636,-200.0,0.00042569,2]
[404600119,1770324674646,-200.0,0.00042569,2]
[404600120,1770324674655,-200.0,0.00042569,2]
[404600121,1770324674665,-200.0,0.00042569,2]
[404600122,1770324674675,-200.0,0.00042569,2]
[404600123,1770324674684,-200.0,0.00042569,2]
[404600124,1770324674694,-200.0,0.00042569,2]
[404600125,1770324674703,-200.0,0.00042569,2]
[404600126,1770324674715,-200.0,0.00042569,2]
[404600127,1770324674725,-200.0,0.00042569,2]
[404600128,1770324674736,-200.0,0.00042569,2]
[404600129,1770324674746,-200.0,0.00042569,2]
[404600130,1770324674755,-200.0,0.00042569,2]
[404600131,1770324674765,-200.0,0.00042569,2]
[404600132,1770324674775,-200.0,0.00042569,2]
[404600133,1770324674784,-200.0,0.00042569,2]
[404600134,1770324674794,-201.0,0.00042569,2]
[404600135,1770324674803,-200.0,0.00042569,2]
[404600136,1770324674813,-201.0,0.00042569,2]
[404600137,1770324674823,-151.0,0.00042569,13]
[404600138,1770324674835,-500.0,0.00042575,120]
[404600139,1770324674844,-295.83055013,0.00042575,120]
[404600140,1770324674854,-839.0,0.00042594,16]
[404600141,1770324674863,-150.0,0.00042595,30]
[404600142,1770324674872,-153.0,0.000426,120]
[404600143,1770324674882,-150.0,0.00042603,30]
[404600144,1770324674892,-150.0,0.00042603,30]
[404600145,1770324674901,-150.0,0.00042609,30]
[404600146,1770324674911,-150.0,0.0004262,30]
[404600147,1770324674921,-150.0,0.00042634,30]
[404600148,1770324674930,-150.0,0.00042635,30]
[404600149,1770324674940,-150.0,0.00042653,30]
[404600150,1770324674949,-150.0,0.00042689,30]
[404600151,1770324674958,-150.0,0.00042703,30]
[404600152,1770324674968,-150.0,0.00042703,30]
[404600153,1770324674978,-150.0,0.00042709,30]
[404600154,1770324674987,-150.0,0.00042711,30]
[404600155,1770324674997,-500.0,0.00042712,120]
[404600156,1770324675006,-150.0,0.00042714,30]
[404600157,1770324675015,-150.0,0.00042718,30]
[404600158,1770324675024,-150.0,0.00042722,120]
[404600159,1770324675034,-150.0,0.00042729,30]
[404600160,1770324675043,-150.0,0.00042738,30]
[404600161,1770324675053,-800.0,0.0004274,120]
[404600162,1770324675062,-214.76840606,0.0004274,120]
[404600163,1770324675071,-154.75,0.0004274,91]
[404600164,1770324675086,-1500.0,0.00042747,120]
[404600165,1770324675099,-150.0,0.00042753,30]
[404600166,1770324675109,-150.0,0.00042784,30]
[404600167,1770324675118,-900.0,0.00042786,60]
[404600168,1770324675128,-1000.0,0.000428,120]
[404600169,1770324675137,-185.69831384,0.000428,120]
[404600170,1770324675146,-150.0,0.00042802,30]
[404600171,1770324675155,-150.0,0.00042802,30]
[404600172,1770324675165,-150.0,0.00042802,30]
[404600173,1770324675174,-150.0,0.00042802,30]
[404600174,1770324675184,-150.0,0.00042802,30]
[404600175,1770324675193,-150.0,0.00042802,30]
[404600176,1770324675203,-506.0,0.00042806,25]
[404600177,1770324675212,-150.0,0.00042824,2]
[404600178,1770324675222,-150.0,0.00042832,30]
[404600179,1770324675232,-150.0,0.0004284,30]
[404600180,1770324675242,-500.0,0.00042849,120]
[404600181,1770324675252,-616.0,0.00042852,2]
[404600182,1770324675261,-1271.0,0.00042852,2]
[404600183,1770324675271,-412.0,0.00042852,2]
[404600184,1770324675281,-2446.0,0.00042852,2]
[404600185,1770324675290,-150.0,0.00042852,30]
[404600186,1770324675300,-150.0,0.00042858,30]
[404600187,1770324675310,-150.0,0.00042867,30]
[404600188,1770324675319,-150.0,0.00042887,30]
[404600189,1770324675329,-188.32803479,0.0004289,120]
[404600190,1770324675342,-150.0,0.00042894,30]
[404600191,1770324675352,-1600.0,0.000429,15]
[404600192,1770324675361,-10896.57875792,0.000429,120]
[404600193,1770324675371,-150.0,0.00042902,30]
[404600194,1770324675381,-150.0,0.00042902,30]
[404600195,1770324675390,-151.0,0.00042924,10]
[404600196,1770324675400,-151.0,0.00042924,10]
[404600197,1770324675410,-151.0,0.00042924,10]
[404600198,1770324675419,-151.0,0.00042924,10]
[404600199,1770324675429,-151.0,0.00042924,10]
[404600200,1770324675439,-151.0,0.00042924,10]
[404600201,1770324675449,-151.0,0.00042924,10]
[404600202,1770324675458,-151.0,0.00042924,10]
[404600203,1770324675468,-151.0,0.00042924,10]
[404600204,1770324675478,-151.0,0.00042924,10]
[404600205,1770324675488,-215.0,0.00042924,10]
[404600206,1770324675498,-150.0,0.00042933,30]
[404600207,1770324675509,-200.0,0.00042946,120]
[404600208,1770324675519,-150.0,0.00042951,30]
[404600209,1770324675529,-150.0,0.00042952,30]
[404600210,1770324675539,-150.0,0.00042971,30]
[404600211,1770324675549,-150.0,0.00042985,30]
[404600212,1770324675558,-500.0,0.00042986,120]
[404600213,1770324675568,-321.07380316,0.00042987,30]
[404600214,1770324675577,-150.0,0.00042992,30]
[404600215,1770324675596,-150.0,0.00042996,30]
[404600216,1770324675605,-77693.0,0.00042998,30]
[404600217,1770324675614,-1561.27719503,0.00042998,30]
[404600218,1770324675623,-50000.0,0.00043,36]
[404600219,1770324675632,-500.0,0.00043,2]
[404600220,1770324675642,-22000.0,0.00043,8]
[404600221,1770324675651,-100000.0,0.00043,8]
[404600222,1770324675661,-487.68955707,0.00043,7]
[404600223,1770324675670,-487.68955707,0.00043,7]
[404600224,1770324675679,-244.00408716,0.00043,7]
[404600225,1770324675689,-244.00408716,0.00043,7]
[404600226,1770324675698,-9986.0,0.00043,120]
[404600227,1770324675708,-889.89,0.00043,120]
[404600228,1770324675717,-500.87639607,0.00043,120]
[404600229,1770324675728,-195.96490162,0.00043,120]
[404600230,1770324675737,-281.28425405,0.00043,30]
[404600231,1770324675747,-1299.36672634,0.00043,120]
[404600232,1770324675759,-9907.0,0.00043,120]
[404600233,1770324675768,-500.0,0.00043,120]
[404600234,1770324675778,-550.0,0.00043,120]
[404600235,1770324675787,-9908.0,0.00043,120]
[404600236,1770324675798,-9908.0,0.00043,120]
[404600237,1770324675808,-9907.0,0.00043,120]
[404600238,1770324675817,-9908.0,0.00043,120]
[404600239,1770324675828,-9908.0,0.00043,120]
[404600240,1770324675844,-9908.0,0.00043,120]
[404600241,1770324675854,-1976.51,0.00043,120]
[404600242,1770324675863,-199.0,0.00043,30]
[404600243,1770324676008,-175.0,0.00043,10]
[404600244,1770324676025,-10179.47168286,0.00043,120]
[404600245,1770324676035,-270.0,0.00043,30]
[404600246,1770324676046,-167.59733973,0.00043,2]
[404600247,1770324676055,-2755.22101619,0.00043,120]
[404600248,1770324676066,-276.0,0.00043,2]
[404600249,1770324676075,-160.30372934,0.00043,14]
[404600250,1770324676091,-150.0,0.00043002,30]
[404600251,1770324676101,-150.0,0.00043002,30]
[404600252,1770324676111,-150.0,0.00043007,30]
[404600253,1770324676121,-800.0,0.00043014,120]
[404600254,1770324676131,-150.0,0.00043022,30]
[404600255,1770324676140,-150.0,0.00043022,30]
[404600256,1770324676150,-150.0,0.00043052,30]
[404600257,1770324676159,-150.0,0.00043056,30]
[404600258,1770324676169,-302.92,0.00043068,120]
[404600259,1770324676179,-150.0,0.00043069,30]
[404600260,1770324676188,-150.0,0.00043077,30]
[404600261,1770324676198,-150.0,0.00043082,30]
[404600262,1770324676207,-1815.2939449,0.000431,120]
[404600263,1770324676218,-150.0,0.00043102,30]
[404600264,1770324676228,-150.0,0.00043102,30]
[404600265,1770324676238,-500.0,0.00043123,120]
[404600266,1770324676248,-150.0,0.00043125,30]
[404600267,1770324676257,-150.0,0.0004314,30]
[404600268,1770324676267,-150.0,0.00043143,30]
[404600269,1770324676276,-228.19,0.00043151,120]
[404600270,1770324676287,-150.0,0.00043152,30]
[404600271,1770324676296,-150.0,0.00043156,30]
[404600272,1770324676306,-150.0,0.00043168,30]
[404600273,1770324676318,-150.0,0.00043168,30]
[404600274,1770324676328,-150.0,0.00043168,30]
[404600275,1770324676347,-1302.99737771,0.00043187,17]
[404600276,1770324676357,-174.34300464,0.00043187,2]
[404600277,1770324676366,-161.3120017,0.00043188,120]
[404600278,1770324676376,-150.0,0.00043188,30]
[404600279,1770324676386,-153.0,0.000432,120]
[404600280,1770324676395,-507.20434419,0.000432,15]
[404600281,1770324676405,-407.20592852,0.000432,15]
[404600282,1770324676415,-317.19773208,0.000432,30]
[404600283,1770324676424,-36244.69,0.000432,5]
[404600284,1770324676434,-4813.95,0.000432,5]
[404600285,1770324676443,-10394.13,0.000432,5]
[404600286,1770324676452,-21577.8,0.000432,5]
[404600287,1770324676462,-150.0,0.000432,120]
[404600288,1770324676471,-150.0,0.00043202,30]
[404600289,1770324676481,-150.0,0.00043202,30]
[404600290,1770324676491,-228.19,0.00043205,120]
[404600291,1770324676500,-991.3323,0.0004322,30]
[404600292,1770324676510,-150.0,0.00043225,30]
[404600293,1770324676520,-150.0,0.0004323,30]
[404600294,1770324676530,-150.0,0.00043251,30]
[404600295,1770324676540,-150.0,0.00043254,30]
[404600296,1770324676550,-1177.0,0.00043257,16]
[404600297,1770324676560,-150.0,0.0004326,30]
[404600298,1770324676569,-568.5160119,0.0004326,120]
[404600299,1770324676579,-500.0,0.00043286,90]
[404600300,1770324676595,-50000.0,0.00043287,57]
[404600301,1770324676604,-50000.0,0.00043287,58]
[404600302,1770324676614,-50000.0,0.00043287,59]
[404600303,1770324676624,-50000.0,0.00043287,60]
[404600304,1770324676633,-7056.0,0.00043287,5]
[404600305,1770324676642,-151.0,0.00043287,60]
[404600306,1770324676652,-465.61723133,0.00043287,60]
[404600307,1770324676661,-500.0,0.00043287,120]
[404600308,1770324676671,-500.0,0.00043287,120]
[404600309,1770324676680,-500.0,0.00043287,120]
[404600310,1770324676690,-500.0,0.00043287,120]
[404600311,1770324676699,-500.0,0.00043287,120]
[404600312,1770324676709,-500.0,0.00043287,120]
[404600313,1770324676719,-277.58084485,0.00043287,120]
[404600314,1770324676730,-500.0,0.00043287,120]
[404600315,1770324676739,-413.84136644,0.00043287,120]
[404600316,1770324676748,-449.09664779,0.00043287,120]
[404600317,1770324676761,-500.0,0.00043287,120]
[404600318,1770324676770,-500.0,0.00043287,120]
[404600319,1770324676779,-234.83365501,0.00043287,120]
[404600320,1770324676789,-429.7115996,0.00043287,120]
[404600321,1770324676799,-500.0,0.00043287,120]
[404600322,1770324676808,-500.0,0.00043287,120]
[404600323,1770324676818,-590.53523646,0.00043287,120]
[404600324,1770324676828,-500.0,0.00043287,120]
[404600325,1770324676842,-500.0,0.00043287,120]
[404600326,1770324676852,-500.0,0.00043287,120]
[404600327,1770324676862,-500.0,0.00043287,120]
[404600328,1770324676871,-500.0,0.00043287,120]
[404600329,1770324676880,-500.0,0.00043287,120]
[404600330,1770324676890,-500.0,0.00043287,120]
[404600331,1770324676899,-500.0,0.00043287,120]
[404600332,1770324676910,-500.0,0.00043287,120]
[404600333,1770324676919,-500.0,0.00043287,120]
[404600334,1770324676929,-216.838932,0.00043287,120]
[404600335,1770324676939,-216.838932,0.00043287,120]
[404600336,1770324676948,-215.644059,0.00043287,120]
[404600337,1770324676957,-215.644059,0.00043287,120]
[404600338,1770324676967,-500.0,0.00043287,2]
[404600339,1770324676977,-500.0,0.00043287,2]
[404600340,1770324676986,-500.0,0.00043287,2]
[404600341,1770324676996,-500.0,0.00043287,2]
[404600342,1770324677005,-500.0,0.00043287,2]
[404600343,1770324677014,-500.0,0.00043287,2]
[404600344,1770324677024,-500.0,0.00043287,2]
[404600345,1770324677034,-500.0,0.00043287,2]
[404600346,1770324677044,-500.0,0.00043287,2]
[404600347,1770324677054,-500.0,0.00043287,2]
[404600348,1770324677064,-500.0,0.00043287,2]
[404600349,1770324677074,-500.0,0.00043287,2]
[404600350,1770324677088,-457.63083478,0.00043287,2]
[404600351,1770324677098,-500.0,0.00043287,120]
[404600352,1770324677108,-500.0,0.00043287,120]
[404600353,1770324677117,-500.0,0.00043287,120]
[404600354,1770324677127,-262.79248899,0.00043287,120]
[404600355,1770324677136,-500.0,0.00043287,120]
[404600356,1770324677146,-500.0,0.00043287,120]
[404600357,1770324677155,-500.0,0.00043287,120]
[404600358,1770324677165,-500.0,0.00043287,120]
[404600359,1770324677174,-500.0,0.00043287,120]
[404600360,1770324677184,-500.0,0.00043287,120]
[404600361,1770324677193,-520.60593399,0.00043287,120]
[404600362,1770324677203,-500.0,0.00043287,120]
[404600363,1770324677213,-500.0,0.00043287,120]
[404600364,1770324677223,-500.0,0.00043287,120]
[404600365,1770324677232,-447.07391571,0.00043287,120]
[404600366,1770324677242,-500.0,0.00043287,120]
[404600367,1770324677251,-649.86851249,0.00043287,120]
[404600368,1770324677261,-500.0,0.00043287,120]
[404600369,1770324677271,-500.0,0.00043287,120]
[404600370,1770324677281,-354.13904644,0.00043287,120]
[404600371,1770324677291,-500.0,0.00043287,120]
[404600372,1770324677301,-500.0,0.00043287,120]
[404600373,1770324677310,-500.0,0.00043287,120]
[404600374,1770324677320,-309.67673225,0.00043287,120]
[404600375,1770324677334,-500.0,0.00043287,120]
[404600376,1770324677344,-500.0,0.00043287,120]
[404600377,1770324677353,-518.69823926,0.00043287,120]
[404600378,1770324677363,-500.0,0.00043287,120]
[404600379,1770324677372,-518.57615542,0.00043287,120]
[404600380,1770324677382,-500.0,0.00043287,120]
[404600381,1770324677391,-500.0,0.00043287,120]
[404600382,1770324677400,-500.0,0.00043287,120]
[404600383,1770324677410,-500.0,0.00043287,120]
[404600384,1770324677420,-500.0,0.00043287,120]
[404600385,1770324677430,-500.0,0.00043287,120]
[404600386,1770324677439,-500.0,0.00043287,120]
[404600387,1770324677448,-500.0,0.00043287,120]
[404600388,1770324677458,-500.0,0.00043287,120]
[404600389,1770324677468,-500.0,0.00043287,120]
[404600390,1770324677477,-581.91047504,0.00043287,120]
[404600391,1770324677487,-500.0,0.00043287,120]
[404600392,1770324677496,-223.40759372,0.00043287,120]
[404600393,1770324677505,-500.0,0.00043287,120]
[404600394,1770324677515,-500.0,0.00043287,120]
[404600395,1770324677525,-500.0,0.00043287,120]
[404600396,1770324677535,-500.0,0.00043287,120]
[404600397,1770324677545,-500.0,0.00043287,120]
[404600398,1770324677554,-508.86582274,0.00043287,120]
[404600399,1770324677564,-500.0,0.00043287,120]
[404600400,1770324677573,-500.0,0.00043287,120]
[404600401,1770324677586,-500.0,0.00043287,120]
[404600402,1770324677595,-500.0,0.00043287,120]
[404600403,1770324677604,-500.0,0.00043287,120]
[404600404,1770324677614,-500.0,0.00043287,120]
[404600405,1770324677623,-469.09459499,0.00043287,120]
[404600406,1770324677633,-500.0,0.00043287,120]
[404600407,1770324677643,-500.0,0.00043287,120]
[404600408,1770324677653,-500.0,0.00043287,120]
[404600409,1770324677662,-500.0,0.00043287,120]
[404600410,1770324677671,-500.0,0.00043287,120]
[404600411,1770324677680,-500.0,0.00043287,120]
[404600412,1770324677689,-500.0,0.00043287,120]
[404600413,1770324677699,-500.0,0.00043287,120]
[404600414,1770324677708,-500.0,0.00043287,120]
[404600415,1770324677718,-500.0,0.00043287,120]
[404600416,1770324677727,-500.0,0.00043287,120]
[404600417,1770324677737,-500.0,0.00043287,120]
[404600418,1770324677747,-500.0,0.00043287,120]
[404600419,1770324677756,-500.0,0.00043287,120]
[404600420,1770324677767,-170.11342588,0.00043287,120]
[404600421,1770324677778,-500.0,0.00043287,120]
[404600422,1770324677787,-204.64640174,0.00043287,120]
[404600423,1770324677797,-500.0,0.00043287,120]
[404600424,1770324677807,-500.0,0.00043287,120]
[404600425,1770324677816,-500.0,0.00043287,120]
[404600426,1770324677826,-529.16718676,0.00043287,120]
[404600427,1770324677840,-500.0,0.00043287,120]
[404600428,1770324677850,-500.0,0.00043287,120]
[404600429,1770324677859,-500.0,0.00043287,120]
[404600430,1770324677869,-500.0,0.00043287,120]
[404600431,1770324677879,-500.0,0.00043287,120]
[404600432,1770324677888,-500.0,0.00043287,7]
[404600433,1770324677897,-500.0,0.00043287,120]
[404600434,1770324677907,-500.0,0.00043287,7]
[404600435,1770324677916,-500.0,0.00043287,120]
[404600436,1770324677926,-500.0,0.00043287,7]
[404600437,1770324677936,-500.0,0.00043287,120]
[404600438,1770324677945,-500.0,0.00043287,120]
[404600439,1770324677955,-500.0,0.00043287,7]
[404600440,1770324677964,-500.0,0.00043287,120]
[404600441,1770324677974,-500.0,0.00043287,7]
[404600442,1770324677983,-500.0,0.00043287,120]
[404600443,1770324677993,-360.12534513,0.00043287,7]
[404600444,1770324678002,-500.0,0.00043287,120]
[404600445,1770324678011,-500.0,0.00043287,120]
[404600446,1770324678020,-549.19416084,0.00043287,120]
[404600447,1770324678030,-500.0,0.00043287,120]
[404600448,1770324678039,-500.0,0.00043287,120]
[404600449,1770324678048,-500.0,0.00043287,120]
[404600450,1770324678057,-500.0,0.00043287,120]
[404600451,1770324678066,-500.0,0.00043287,120]